[Event "Championnat d'Europe de Blitz"]
[Date "2024.12.09"]
[White "Kilic, Eray"]
[Black "Laurusas, Tomas"]
[WhiteElo "2459"]
[BlackElo "2578"]
[Round "8.23"]
[Result "1-0"]
[TimeControl "180+2"]

1. e4 {[%emt 00:00:01] [%clk 00:03:03]} c5 {[%clk 00:03:04]} 2. Nf3 {[%emt
00:00:01] [%clk 00:03:03]} e6 {[%clk 00:03:05]} 3. c3 {[%emt 00:00:01] [%clk
00:03:04]} d5 {[%clk 00:03:06]} 4. e5 {[%clk 00:03:06]} d4 {[%emt 00:00:01]
[%clk 00:03:07]} 5. d3 {[%clk 00:03:07]} Nc6 {[%emt 00:00:07] [%clk 00:03:02]}
6. g3 {[%clk 00:03:07]} Nge7 {[%emt 00:00:07] [%clk 00:02:57]} 7. Bg2 {[%clk
00:03:08]} dxc3 {[%emt 00:00:22] [%clk 00:02:38]} 8. bxc3 {[%emt 00:00:17] [%clk
00:02:54]} b6 {[%emt 00:00:01] [%clk 00:02:39]} 9. O-O {[%emt 00:00:07] [%clk
00:02:47]} Bb7 {[%emt 00:00:02] [%clk 00:02:40]} 10. Na3 {[%emt 00:00:07] [%clk
00:02:42]} Nf5 {[%emt 00:00:02] [%clk 00:02:40]} 11. Nc4 {[%emt 00:00:08] [%clk
00:02:36]} h5 {[%emt 00:00:02] [%clk 00:02:40]} 12. h4 {[%emt 00:00:11] [%clk
00:02:27]} Be7 {[%emt 00:00:02] [%clk 00:02:41]} 13. Ng5 {[%emt 00:00:05] [%clk
00:02:23]} g6 {[%emt 00:00:04] [%clk 00:02:39]} 14. Ne4 {[%emt 00:00:03] [%clk
00:02:22]} b5 {[%emt 00:00:26] [%clk 00:02:16]} 15. Ncd6+ {[%emt 00:00:10] [%clk
00:02:13]} Nxd6 {[%emt 00:00:02] [%clk 00:02:16]} 16. exd6 {[%emt 00:00:02]
[%clk 00:02:14]} Bxd6 {[%emt 00:00:01] [%clk 00:02:17]} 17. Bg5 {[%clk
00:02:14]} Qc7 {[%emt 00:00:18] [%clk 00:02:02]} 18. Bf6 {[%emt 00:00:23] [%clk
00:01:53]} O-O {[%emt 00:00:31] [%clk 00:01:33]} 19. Qd2 {[%emt 00:00:07] [%clk
00:01:48]} Kh7 {[%emt 00:00:01] [%clk 00:01:34]} 20. Ng5+ {[%emt 00:00:21] [%clk
00:01:30]} Kg8 {[%clk 00:01:35]} 21. Ne4 {[%clk 00:01:31]} Kh7 {[%clk 00:01:36]}
22. Qg5 {[%emt 00:00:05] [%clk 00:01:28]} Ne7 {[%emt 00:01:11] [%clk 00:00:28]}
23. Nxd6 {[%emt 00:00:33] [%clk 00:00:56]} Bxg2 {[%emt 00:00:01] [%clk
00:00:29]} 24. Kxg2 {[%emt 00:00:02] [%clk 00:00:56]} Qxd6 {[%emt 00:00:07]
[%clk 00:00:24]} 25. Bxe7 {[%emt 00:00:01] [%clk 00:00:57]} Qc6+ {[%emt
00:00:01] [%clk 00:00:26]} 26. Kg1 {[%emt 00:00:01] [%clk 00:00:57]} Rfe8 {[%emt
00:00:02] [%clk 00:00:26]} 27. Bf6 {[%emt 00:00:02] [%clk 00:00:57]} e5 {[%emt
00:00:03] [%clk 00:00:26]} 28. Bxe5 {[%emt 00:00:03] [%clk 00:00:55]} Re6 {[%emt
00:00:04] [%clk 00:00:24]} 29. Bf4 {[%emt 00:00:10] [%clk 00:00:46]} Rae8 {[%emt
00:00:08] [%clk 00:00:19]} 30. d4 {[%emt 00:00:01] [%clk 00:00:47]} cxd4 {[%emt
00:00:07] [%clk 00:00:14]} 31. cxd4 {[%emt 00:00:01] [%clk 00:00:48]} Qf3 {[%emt
00:00:07] [%clk 00:00:08]} 32. Rac1 {[%emt 00:00:05] [%clk 00:00:45]} Kg8 {[%emt
00:00:02] [%clk 00:00:08]} 33. Be5 {[%emt 00:00:04] [%clk 00:00:42]} Kh7 {[%emt
00:00:07] [%clk 00:00:04]} 34. Rc7 {[%emt 00:00:03] [%clk 00:00:42]} Rf8 {[%emt
00:00:02] [%clk 00:00:04]} 35. Qf4 {[%emt 00:00:05] [%clk 00:00:38]} 1-0

[Site "Europe Echecs"]

[Event "Championnat d'Europe de Blitz"]
[Date "2024.12.09"]
[White "Perunovic, Miodrag"]
[Black "Kuzubov, Yuriy"]
[WhiteElo "2357"]
[BlackElo "2595"]
[Round "8.24"]
[Result "0-1"]
[TimeControl "180+2"]

1. e4 {[%emt 00:00:02] [%clk 00:03:01]} e6 {[%emt 00:00:01] [%clk 00:03:03]} 2.
d4 {[%emt 00:00:02] [%clk 00:03:02]} d5 {[%clk 00:03:04]} 3. Nc3 {[%emt
00:00:01] [%clk 00:03:03]} Bb4 {[%emt 00:00:03] [%clk 00:03:04]} 4. e5 {[%emt
00:00:01] [%clk 00:03:03]} b6 {[%emt 00:00:07] [%clk 00:02:59]} 5. a3 {[%emt
00:00:02] [%clk 00:03:03]} Bxc3+ {[%emt 00:00:02] [%clk 00:02:59]} 6. bxc3
{[%emt 00:00:02] [%clk 00:03:03]} Ne7 {[%emt 00:00:01] [%clk 00:03:00]} 7. Qg4
{[%emt 00:00:03] [%clk 00:03:02]} Ng6 {[%emt 00:00:01] [%clk 00:03:01]} 8. h4
{[%emt 00:00:03] [%clk 00:03:01]} h5 {[%emt 00:00:01] [%clk 00:03:02]} 9. Qg3
{[%emt 00:00:02] [%clk 00:03:01]} Ba6 {[%emt 00:00:03] [%clk 00:03:01]} 10. Bxa6
{[%emt 00:00:11] [%clk 00:02:52]} Nxa6 {[%emt 00:00:01] [%clk 00:03:03]} 11. Bg5
{[%emt 00:00:01] [%clk 00:02:52]} Qd7 {[%emt 00:00:03] [%clk 00:03:02]} 12. Ne2
{[%emt 00:00:05] [%clk 00:02:48]} Nb8 {[%emt 00:00:06] [%clk 00:02:59]} 13. f4
{[%emt 00:00:10] [%clk 00:02:40]} Nc6 {[%emt 00:00:04] [%clk 00:02:57]} 14. O-O
{[%emt 00:00:27] [%clk 00:02:14]} Nce7 {[%emt 00:00:37] [%clk 00:02:22]} 15.
Bxe7 {[%emt 00:00:11] [%clk 00:02:05]} Nxe7 {[%emt 00:00:02] [%clk 00:02:22]}
16. Qxg7 {[%emt 00:01:03] [%clk 00:01:04]} O-O-O {[%emt 00:00:02] [%clk
00:02:23]} 17. Qg3 {[%emt 00:00:06] [%clk 00:01:00]} Nf5 {[%emt 00:00:04] [%clk
00:02:21]} 18. Qf2 {[%emt 00:00:05] [%clk 00:00:57]} Rhg8 {[%emt 00:00:06] [%clk
00:02:16]} 19. Kh2 {[%emt 00:00:14] [%clk 00:00:45]} Rg4 {[%emt 00:00:40] [%clk
00:01:39]} 20. g3 {[%emt 00:00:09] [%clk 00:00:37]} Rdg8 {[%emt 00:00:03] [%clk
00:01:39]} 21. Rg1 {[%emt 00:00:13] [%clk 00:00:27]} Qa4 {[%emt 00:00:36] [%clk
00:01:05]} 22. Ra2 {[%emt 00:00:05] [%clk 00:00:24]} Kb7 {[%emt 00:00:14] [%clk
00:00:53]} 23. Kh3 {[%emt 00:00:11] [%clk 00:00:15]} a5 {[%emt 00:00:19] [%clk
00:00:37]} 24. Kh2 {[%emt 00:00:02] [%clk 00:00:14]} Qb5 {[%emt 00:00:04] [%clk
00:00:35]} 25. Kh3 {[%emt 00:00:05] [%clk 00:00:11]} Nxh4 {[%emt 00:00:09] [%clk
00:00:28]} 26. gxh4 {[%emt 00:00:05] [%clk 00:00:08]} Rxg1 {[%emt 00:00:01]
[%clk 00:00:28]} 27. Nxg1 {[%emt 00:00:02] [%clk 00:00:09]} Qb1 {[%emt 00:00:01]
[%clk 00:00:29]} 28. Nf3 {[%emt 00:00:05] [%clk 00:00:05]} Qxa2 {[%emt 00:00:05]
[%clk 00:00:26]} 29. f5 {[%clk 00:00:07]} Qxa3 {[%emt 00:00:03] [%clk 00:00:25]}
30. Qe3 {[%emt 00:00:02] [%clk 00:00:07]} Qb2 {[%emt 00:00:02] [%clk 00:00:25]}
31. Qd3 {[%emt 00:00:02] [%clk 00:00:07]} a4 {[%emt 00:00:02] [%clk 00:00:26]}
32. c4 {[%emt 00:00:03] [%clk 00:00:06]} Qc1 {[%emt 00:00:02] [%clk 00:00:25]}
0-1

[Site "Europe Echecs"]

[Event "Championnat d'Europe de Blitz"]
[Date "2024.12.09"]
[White "Aizenberg, Benny"]
[Black "Pancevski, Filip"]
[WhiteElo "2425"]
[BlackElo "2420"]
[Round "8.25"]
[Result "0-1"]
[TimeControl "180+2"]

1. e4 {[%clk 00:03:03]} d6 {[%clk 00:03:04]} 2. d4 {[%clk 00:03:04]} Nf6 {[%emt
00:00:01] [%clk 00:03:05]} 3. Nc3 {[%emt 00:00:01] [%clk 00:03:05]} e5 {[%clk
00:03:06]} 4. Nf3 {[%emt 00:00:02] [%clk 00:03:05]} Nbd7 {[%clk 00:03:08]} 5.
Bc4 {[%emt 00:00:01] [%clk 00:03:06]} Be7 {[%clk 00:03:09]} 6. O-O {[%emt
00:00:02] [%clk 00:03:06]} O-O {[%emt 00:00:01] [%clk 00:03:10]} 7. a4 {[%emt
00:00:04] [%clk 00:03:05]} c6 {[%clk 00:03:11]} 8. Re1 {[%emt 00:00:03] [%clk
00:03:04]} exd4 {[%emt 00:00:05] [%clk 00:03:08]} 9. Nxd4 {[%emt 00:00:02] [%clk
00:03:04]} Ne5 {[%clk 00:03:09]} 10. Be2 {[%emt 00:00:09] [%clk 00:02:57]} Re8
{[%emt 00:00:02] [%clk 00:03:10]} 11. Be3 {[%emt 00:00:05] [%clk 00:02:53]} Bf8
{[%emt 00:00:02] [%clk 00:03:10]} 12. h3 {[%emt 00:00:03] [%clk 00:02:51]} h6
{[%emt 00:00:02] [%clk 00:03:11]} 13. a5 {[%emt 00:00:01] [%clk 00:02:52]} Bd7
{[%emt 00:00:02] [%clk 00:03:11]} 14. Qd2 {[%emt 00:00:03] [%clk 00:02:51]} b5
{[%emt 00:00:09] [%clk 00:03:04]} 15. axb6 {[%emt 00:00:07] [%clk 00:02:45]}
axb6 {[%emt 00:00:01] [%clk 00:03:06]} 16. Nf3 {[%emt 00:00:17] [%clk 00:02:30]}
Rxa1 {[%emt 00:00:14] [%clk 00:02:54]} 17. Rxa1 {[%emt 00:00:01] [%clk
00:02:31]} Ng6 {[%emt 00:00:02] [%clk 00:02:53]} 18. Bd3 {[%emt 00:00:07] [%clk
00:02:27]} b5 {[%clk 00:02:55]} 19. b4 {[%emt 00:00:09] [%clk 00:02:20]} Qb8
{[%emt 00:00:10] [%clk 00:02:46]} 20. Nd4 {[%emt 00:00:10] [%clk 00:02:11]} Ne5
{[%emt 00:00:04] [%clk 00:02:45]} 21. Be2 {[%emt 00:00:10] [%clk 00:02:02]} Nc4
{[%emt 00:00:06] [%clk 00:02:41]} 22. Bxc4 {[%emt 00:00:09] [%clk 00:01:56]}
bxc4 {[%clk 00:02:42]} 23. Ra6 {[%emt 00:00:28] [%clk 00:01:29]} Qb7 {[%emt
00:00:10] [%clk 00:02:34]} 24. Ra1 {[%emt 00:00:09] [%clk 00:01:22]} Qxb4 {[%emt
00:00:24] [%clk 00:02:13]} 25. Nde2 {[%emt 00:00:05] [%clk 00:01:19]} Qb7 {[%emt
00:00:25] [%clk 00:01:50]} 26. Ng3 {[%emt 00:00:03] [%clk 00:01:18]} Ra8 {[%emt
00:00:21] [%clk 00:01:31]} 27. Rb1 {[%emt 00:00:05] [%clk 00:01:16]} Qc7 {[%clk
00:01:31]} 28. Bd4 {[%emt 00:00:02] [%clk 00:01:16]} Nh7 {[%emt 00:00:27] [%clk
00:01:06]} 29. Nh5 {[%emt 00:00:05] [%clk 00:01:13]} Qa5 {[%emt 00:00:13] [%clk
00:00:55]} 30. Ng3 {[%emt 00:00:15] [%clk 00:01:00]} Ng5 {[%emt 00:00:17] [%clk
00:00:39]} 31. Be3 {[%emt 00:00:07] [%clk 00:00:56]} Nh7 {[%emt 00:00:04] [%clk
00:00:37]} 32. Kh2 {[%emt 00:00:04] [%clk 00:00:54]} Qc7 {[%emt 00:00:09] [%clk
00:00:30]} 33. Qd4 {[%emt 00:00:03] [%clk 00:00:53]} Be6 {[%emt 00:00:02] [%clk
00:00:30]} 34. Qd2 {[%emt 00:00:09] [%clk 00:00:47]} Nf6 {[%emt 00:00:01] [%clk
00:00:30]} 35. Bd4 {[%clk 00:00:48]} Nd7 {[%emt 00:00:02] [%clk 00:00:30]} 36.
Kg1 {[%emt 00:00:04] [%clk 00:00:45]} Ne5 {[%emt 00:00:07] [%clk 00:00:26]} 37.
f4 {[%emt 00:00:03] [%clk 00:00:44]} c5 {[%emt 00:00:05] [%clk 00:00:24]} 38.
Be3 {[%emt 00:00:02] [%clk 00:00:43]} Nc6 {[%clk 00:00:25]} 39. f5 {[%emt
00:00:01] [%clk 00:00:44]} Bd7 {[%emt 00:00:01] [%clk 00:00:26]} 40. Nd5 {[%emt
00:00:01] [%clk 00:00:45]} Qa5 {[%emt 00:00:02] [%clk 00:00:26]} 41. Qf2 {[%emt
00:00:05] [%clk 00:00:42]} Ne5 {[%emt 00:00:09] [%clk 00:00:19]} 42. Nh5 {[%emt
00:00:01] [%clk 00:00:42]} Qd8 {[%emt 00:00:07] [%clk 00:00:15]} 43. Bxh6 {[%emt
00:00:09] [%clk 00:00:34]} gxh6 {[%emt 00:00:02] [%clk 00:00:15]} 44. Ndf6+
{[%clk 00:00:36]} Kh8 {[%emt 00:00:01] [%clk 00:00:15]} 45. Qg3 {[%clk
00:00:37]} Ng6 {[%emt 00:00:05] [%clk 00:00:13]} 46. fxg6 {[%emt 00:00:01] [%clk
00:00:37]} Bg7 {[%emt 00:00:01] [%clk 00:00:13]} 47. Qxd6 {[%emt 00:00:14] [%clk
00:00:26]} Be6 {[%emt 00:00:02] [%clk 00:00:14]} 48. Qxd8+ {[%emt 00:00:04]
[%clk 00:00:23]} Rxd8 {[%clk 00:00:15]} 49. gxf7 {[%emt 00:00:01] [%clk
00:00:24]} Bxf7 {[%emt 00:00:02] [%clk 00:00:15]} 50. Rb7 {[%emt 00:00:02] [%clk
00:00:24]} Bxh5 {[%emt 00:00:04] [%clk 00:00:13]} 51. Nxh5 {[%clk 00:00:25]}
Rd1+ {[%emt 00:00:04] [%clk 00:00:11]} 52. Kf2 {[%emt 00:00:03] [%clk 00:00:24]}
Bd4+ {[%emt 00:00:01] [%clk 00:00:12]} 53. Ke2 {[%emt 00:00:05] [%clk 00:00:21]}
Rc1 {[%emt 00:00:02] [%clk 00:00:12]} 54. Kd2 {[%clk 00:00:22]} Rg1 {[%clk
00:00:13]} 55. Nf4 {[%clk 00:00:23]} Rf1 {[%emt 00:00:02] [%clk 00:00:13]} 56.
Rf7 {[%emt 00:00:07] [%clk 00:00:18]} Rf2+ {[%emt 00:00:04] [%clk 00:00:12]} 57.
Kd1 {[%clk 00:00:19]} Kg8 {[%emt 00:00:03]} 58. Rf5 {[%emt 00:00:01]} c3 {[%clk
00:00:13]} 59. g4 {[%emt 00:00:13] [%clk 00:00:09]} Rf1+ {[%clk 00:00:14]} 60.
Ke2 {[%emt 00:00:01] [%clk 00:00:10]} Rf2+ {[%emt 00:00:01] [%clk 00:00:15]} 61.
Kd3 {[%emt 00:00:04] [%clk 00:00:08]} Rd2+ {[%emt 00:00:01] [%clk 00:00:16]} 62.
Kc4 Rxc2 63. Nd3 {[%clk 00:00:09]} Rd2 {[%emt 00:00:08]} 64. Rf1 {[%clk
00:00:06]} c2 {[%emt 00:00:03] [%clk 00:00:17]} 65. Rc1 {[%emt 00:00:01] [%clk
00:00:06]} Be3 {[%emt 00:00:01] [%clk 00:00:17]} 66. Ne1 {[%emt 00:00:04] [%clk
00:00:05]} Rd1 {[%emt 00:00:01] [%clk 00:00:18]} 67. Rxc2 {[%emt 00:00:01] [%clk
00:00:06]} Rxe1 {[%clk 00:00:19]} 68. Kd5 {[%emt 00:00:02] [%clk 00:00:06]} Bd4
{[%emt 00:00:01] [%clk 00:00:19]} 69. Ra2 {[%emt 00:00:02] [%clk 00:00:07]} Kg7
{[%emt 00:00:01] [%clk 00:00:20]} 70. Ra6 {[%emt 00:00:02] [%clk 00:00:08]} Rh1
{[%clk 00:00:20]} 71. e5 {[%emt 00:00:04] [%clk 00:00:06]} Rxh3 {[%emt 00:00:01]
[%clk 00:00:21]} 72. e6 {[%clk 00:00:07]} Re3 {[%emt 00:00:01] [%clk 00:00:22]}
73. Kd6 {[%emt 00:00:03] [%clk 00:00:06]} Re4 {[%emt 00:00:03] [%clk 00:00:21]}
74. Kd7 {[%emt 00:00:02] [%clk 00:00:06]} Bf6 {[%clk 00:00:22]} 75. Rc6 {[%emt
00:00:02] [%clk 00:00:07]} Re5 {[%clk 00:00:24]} 76. Rc7 {[%emt 00:00:04] [%clk
00:00:06]} Kg6 {[%clk 00:00:25]} 77. Rc8 {[%emt 00:00:02] [%clk 00:00:07]} Kg5
{[%emt 00:00:04] [%clk 00:00:22]} 78. Rg8+ {[%emt 00:00:01] [%clk 00:00:07]} Kf4
{[%emt 00:00:02] [%clk 00:00:23]} 79. Rf8 {[%emt 00:00:01] [%clk 00:00:08]} Kg5
{[%clk 00:00:24]} 80. Rg8+ {[%clk 00:00:10]} Kh4 {[%emt 00:00:02] [%clk
00:00:25]} 81. Rf8 {[%emt 00:00:03] [%clk 00:00:08]} Bg5 {[%clk 00:00:26]} 82.
Rf5 {[%clk 00:00:09]} Re4 {[%emt 00:00:03] [%clk 00:00:26]} 83. Rxc5 {[%emt
00:00:01] [%clk 00:00:10]} Kxg4 {[%clk 00:00:26]} 84. Rc2 {[%emt 00:00:03] [%clk
00:00:10]} Kg3 {[%emt 00:00:02] [%clk 00:00:27]} 85. Rc3+ {[%emt 00:00:01] [%clk
00:00:10]} Kf4 {[%clk 00:00:28]} 86. Rh3 {[%emt 00:00:03] [%clk 00:00:09]} Kg4
{[%emt 00:00:02] [%clk 00:00:29]} 87. Rh1 {[%clk 00:00:10]} Kf5 {[%clk
00:00:30]} 88. Rf1+ {[%emt 00:00:02] [%clk 00:00:10]} Kg6 {[%emt 00:00:01] [%clk
00:00:31]} 89. Rf8 {[%emt 00:00:05] [%clk 00:00:07]} h5 {[%emt 00:00:01] [%clk
00:00:32]} 90. Rg8+ {[%emt 00:00:01] [%clk 00:00:08]} Kf5 {[%clk 00:00:33]} 91.
Rf8+ {[%emt 00:00:02] [%clk 00:00:08]} Kg4 {[%clk 00:00:34]} 92. Rf1 {[%emt
00:00:01] [%clk 00:00:08]} h4 {[%clk 00:00:36]} 93. Rg1+ {[%clk 00:00:10]} Kh5
{[%emt 00:00:01] [%clk 00:00:37]} 94. Rh1 {[%clk 00:00:11]} Re3 {[%emt 00:00:02]
[%clk 00:00:37]} 95. Kd6 {[%emt 00:00:05] [%clk 00:00:08]} h3 {[%emt 00:00:02]
[%clk 00:00:37]} 96. Kd7 {[%emt 00:00:01] [%clk 00:00:09]} Kh4 {[%emt 00:00:05]
[%clk 00:00:35]} 97. Kd6 {[%emt 00:00:06] [%clk 00:00:05]} Re2 {[%clk 00:00:36]}
98. Ra1 {[%emt 00:00:03] [%clk 00:00:04]} Bf4+ {[%emt 00:00:02] [%clk 00:00:36]}
99. Kd7 {[%clk 00:00:05]} Bg5 {[%emt 00:00:01] [%clk 00:00:37]} 100. Ra4+ {[%clk
00:00:06]} Kh5 {[%emt 00:00:01] [%clk 00:00:37]} 101. Ra8 {[%emt 00:00:05] [%clk
00:00:04]} h2 {[%emt 00:00:02] [%clk 00:00:36]} 102. Kd6 {[%emt 00:00:03] [%clk
00:00:04]} h1=Q {[%emt 00:00:03] [%clk 00:00:35]} 103. Rh8+ {[%emt 00:00:01]
[%clk 00:00:05]} Bh6 {[%clk 00:00:36]} 0-1

[Site "Europe Echecs"]

[Event "Championnat d'Europe de Blitz"]
[Date "2024.12.09"]
[White "Zajic, Milan"]
[Black "Muter, Donny"]
[WhiteElo "2392"]
[BlackElo "2206"]
[Round "8.26"]
[Result "1-0"]
[TimeControl "180+2"]

1. e4 {[%clk 00:03:03]} d6 {[%emt 00:00:01] [%clk 00:03:03]} 2. d4 {[%emt
00:00:02] [%clk 00:03:04]} Nf6 {[%clk 00:03:04]} 3. Nc3 {[%emt 00:00:02] [%clk
00:03:04]} c6 {[%clk 00:03:06]} 4. f4 {[%emt 00:00:01] [%clk 00:03:05]} d5
{[%emt 00:00:01] [%clk 00:03:07]} 5. e5 {[%emt 00:00:06] [%clk 00:03:01]} Ne4
{[%clk 00:03:08]} 6. Bd3 {[%emt 00:00:13] [%clk 00:02:49]} Nxc3 {[%emt 00:00:03]
[%clk 00:03:08]} 7. bxc3 {[%emt 00:00:01] [%clk 00:02:49]} c5 {[%clk 00:03:09]}
8. Nf3 {[%emt 00:00:27] [%clk 00:02:24]} c4 {[%emt 00:00:16] [%clk 00:02:56]} 9.
Be2 {[%clk 00:02:25]} Bf5 {[%emt 00:00:02] [%clk 00:02:56]} 10. a4 {[%emt
00:00:04] [%clk 00:02:23]} e6 {[%emt 00:00:21] [%clk 00:02:37]} 11. O-O {[%emt
00:00:09] [%clk 00:02:16]} Be7 {[%emt 00:00:22] [%clk 00:02:17]} 12. Ba3 {[%emt
00:00:12] [%clk 00:02:06]} Nc6 {[%emt 00:00:09] [%clk 00:02:10]} 13. Nd2 {[%emt
00:00:25] [%clk 00:01:43]} Bg6 {[%emt 00:00:44] [%clk 00:01:27]} 14. g4 {[%emt
00:00:09] [%clk 00:01:36]} Bxa3 {[%emt 00:00:07] [%clk 00:01:22]} 15. Rxa3
{[%emt 00:00:01] [%clk 00:01:37]} f5 {[%emt 00:00:02] [%clk 00:01:22]} 16. Kh1
{[%emt 00:00:29] [%clk 00:01:10]} Qe7 {[%emt 00:00:44] [%clk 00:00:40]} 17. Ra2
{[%clk 00:01:12]} Qf7 {[%clk 00:00:41]} 18. Nf3 {[%emt 00:00:09] [%clk
00:01:04]} fxg4 {[%emt 00:00:03] [%clk 00:00:40]} 19. Ng5 {[%emt 00:00:01] [%clk
00:01:05]} Qe7 {[%emt 00:00:12] [%clk 00:00:31]} 20. Bxg4 {[%emt 00:00:01] [%clk
00:01:05]} Bf5 {[%emt 00:00:23] [%clk 00:00:11]} 21. Bxf5 {[%emt 00:00:18] [%clk
00:00:49]} exf5 {[%clk 00:00:12]} 22. a5 {[%emt 00:00:01] [%clk 00:00:50]} O-O-O
{[%emt 00:00:04] [%clk 00:00:09]} 23. Qh5 {[%emt 00:00:28] [%clk 00:00:24]} Kc7
{[%emt 00:00:07] [%clk 00:00:05]} 24. Qf7 {[%emt 00:00:05] [%clk 00:00:21]} Rde8
{[%emt 00:00:03] [%clk 00:00:04]} 25. Qxd5 {[%emt 00:00:05] [%clk 00:00:18]} h6
{[%clk 00:00:05]} 26. Nf7 {[%emt 00:00:06] [%clk 00:00:13]} Rhf8 {[%emt
00:00:02] [%clk 00:00:05]} 27. Nd6 {[%emt 00:00:01] [%clk 00:00:14]} Rd8 {[%clk
00:00:07]} 28. a6 {[%emt 00:00:04] [%clk 00:00:13]} b6 {[%emt 00:00:02] [%clk
00:00:08]} 29. Nb5+ {[%emt 00:00:01] [%clk 00:00:13]} 1-0

[Site "Europe Echecs"]

[Event "Championnat d'Europe de Blitz"]
[Date "2024.12.09"]
[White "Costachi, Mihnea"]
[Black "Radeva, Viktoria"]
[WhiteElo "2464"]
[BlackElo "2275"]
[Round "8.27"]
[Result "1/2-1/2"]
[TimeControl "180+2"]

1. Nc3 {[%clk 00:03:03]} e6 {[%emt 00:00:05] [%clk 00:02:59]} 2. d4 {[%emt
00:00:03] [%clk 00:03:02]} d5 {[%emt 00:00:05] [%clk 00:02:56]} 3. Bf4 {[%emt
00:00:02] [%clk 00:03:02]} Bb4 {[%emt 00:00:13] [%clk 00:02:45]} 4. e3 {[%emt
00:00:08] [%clk 00:02:55]} Nf6 {[%emt 00:00:07] [%clk 00:02:41]} 5. Bd3 {[%emt
00:00:01] [%clk 00:02:56]} O-O {[%emt 00:00:13] [%clk 00:02:30]} 6. Nge2 {[%emt
00:00:02] [%clk 00:02:55]} c5 {[%emt 00:00:04] [%clk 00:02:29]} 7. dxc5 {[%emt
00:00:02] [%clk 00:02:55]} Bxc5 {[%emt 00:00:03] [%clk 00:02:28]} 8. O-O {[%emt
00:00:04] [%clk 00:02:53]} Nc6 {[%emt 00:00:02] [%clk 00:02:28]} 9. Bg5 {[%emt
00:00:03] [%clk 00:02:52]} Be7 {[%emt 00:00:09] [%clk 00:02:22]} 10. Ng3 {[%emt
00:00:27] [%clk 00:02:27]} h6 {[%emt 00:00:06] [%clk 00:02:18]} 11. Bxf6 {[%emt
00:00:09] [%clk 00:02:21]} Bxf6 {[%emt 00:00:01] [%clk 00:02:19]} 12. Rb1 {[%emt
00:00:09] [%clk 00:02:14]} b6 {[%emt 00:00:14] [%clk 00:02:08]} 13. e4 {[%emt
00:00:08] [%clk 00:02:07]} d4 {[%emt 00:00:25] [%clk 00:01:46]} 14. Nce2 {[%emt
00:00:08] [%clk 00:02:01]} e5 {[%emt 00:00:02] [%clk 00:01:46]} 15. f4 {[%emt
00:00:01] [%clk 00:02:01]} exf4 {[%emt 00:00:02] [%clk 00:01:46]} 16. Nxf4
{[%emt 00:00:02] [%clk 00:02:01]} Ne5 {[%emt 00:00:05] [%clk 00:01:43]} 17. h3
{[%emt 00:00:12] [%clk 00:01:51]} Bg5 {[%emt 00:00:12] [%clk 00:01:33]} 18. Qe2
{[%emt 00:00:24] [%clk 00:01:28]} Re8 {[%emt 00:00:18] [%clk 00:01:18]} 19. Kh1
{[%emt 00:00:02] [%clk 00:01:27]} Bd7 {[%emt 00:00:11] [%clk 00:01:10]} 20. Nf5
{[%emt 00:00:25] [%clk 00:01:04]} Bxf5 {[%emt 00:00:05] [%clk 00:01:06]} 21.
exf5 {[%emt 00:00:01] [%clk 00:01:05]} Qd6 {[%emt 00:00:34] [%clk 00:00:34]} 22.
Qf2 {[%emt 00:00:09] [%clk 00:00:58]} Rad8 {[%emt 00:00:09] [%clk 00:00:27]} 23.
Rbe1 {[%clk 00:00:59]} Re7 {[%emt 00:00:09] [%clk 00:00:20]} 24. Re4 {[%emt
00:00:08] [%clk 00:00:54]} Nxd3 {[%emt 00:00:06] [%clk 00:00:17]} 25. cxd3
{[%emt 00:00:01] [%clk 00:00:54]} Rxe4 {[%emt 00:00:04] [%clk 00:00:16]} 26.
dxe4 {[%clk 00:00:55]} Bxf4 {[%emt 00:00:01] [%clk 00:00:16]} 27. Qxf4 {[%emt
00:00:01] [%clk 00:00:56]} Qxf4 {[%emt 00:00:02] [%clk 00:00:17]} 28. Rxf4
{[%emt 00:00:03] [%clk 00:00:57]} d3 {[%emt 00:00:02]} 29. Rf1 {[%clk 00:00:58]}
d2 {[%emt 00:00:03] [%clk 00:00:16]} 30. Rd1 {[%clk 00:00:59]} Rd4 {[%emt
00:00:03] [%clk 00:00:15]} 31. Kg1 {[%emt 00:00:06] [%clk 00:00:55]} Kf8 {[%emt
00:00:02] [%clk 00:00:15]} 32. Kf2 {[%emt 00:00:06] [%clk 00:00:51]} Rxe4 {[%emt
00:00:02] [%clk 00:00:16]} 33. Rxd2 {[%emt 00:00:01] [%clk 00:00:52]} Rf4+
{[%clk 00:00:17]} 34. Ke3 {[%emt 00:00:02] [%clk 00:00:52]} Rxf5 {[%emt
00:00:01] [%clk 00:00:18]} 35. Rd7 {[%emt 00:00:01] [%clk 00:00:52]} Ra5 {[%emt
00:00:02] [%clk 00:00:18]} 36. a3 {[%emt 00:00:01] [%clk 00:00:53]} Ke8 {[%clk
00:00:20]} 37. Rb7 {[%emt 00:00:01] [%clk 00:00:54]} Ra4 {[%emt 00:00:04] [%clk
00:00:18]} 38. g4 {[%emt 00:00:07] [%clk 00:00:49]} g6 {[%emt 00:00:02] [%clk
00:00:17]} 39. Kf3 {[%emt 00:00:05] [%clk 00:00:45]} Kf8 {[%clk 00:00:18]} 40.
h4 {[%emt 00:00:06] [%clk 00:00:41]} Kg7 {[%clk 00:00:20]} 41. g5 {[%emt
00:00:02] [%clk 00:00:41]} hxg5 {[%clk 00:00:21]} 42. hxg5 {[%clk 00:00:43]} Ra5
{[%emt 00:00:02] [%clk 00:00:21]} 43. Kg4 {[%emt 00:00:05] [%clk 00:00:39]} Ra4+
{[%emt 00:00:07] [%clk 00:00:17]} 44. Kf3 {[%emt 00:00:01] [%clk 00:00:40]} Ra5
{[%clk 00:00:18]} 45. Kf4 {[%emt 00:00:05] [%clk 00:00:38]} Rb5 {[%emt 00:00:03]
[%clk 00:00:17]} 46. b4 {[%emt 00:00:16] [%clk 00:00:23]} a5 {[%emt 00:00:02]
[%clk 00:00:17]} 47. bxa5 {[%emt 00:00:02] [%clk 00:00:24]} Rxa5 {[%clk
00:00:18]} 48. Rxb6 {[%clk 00:00:25]} Rxa3 {[%emt 00:00:02] [%clk 00:00:18]} 49.
Rb8 {[%emt 00:00:10] [%clk 00:00:17]} Ra5 {[%emt 00:00:02] [%clk 00:00:18]} 50.
Rc8 {[%emt 00:00:02] [%clk 00:00:17]} Rf5+ {[%emt 00:00:02] [%clk 00:00:18]} 51.
Kg4 {[%emt 00:00:01] [%clk 00:00:18]} Ra5 {[%emt 00:00:01] [%clk 00:00:19]} 52.
Kf4 {[%emt 00:00:02]} Rf5+ {[%clk 00:00:20]} 53. Kg4 {[%emt 00:00:01] [%clk
00:00:16]} 1/2-1/2

[Site "Europe Echecs"]